bitfinex/quotes_BTCUSD_20230118
["timestamp","ask_amount","ask_price","bid_price","bid_amount"]
[1674060072422,0.3867601,20583.0,20582.0,1.7647701]
[1674060072667,0.3867601,20583.0,20582.0,1.53400985]
[1674060072915,0.3867601,20583.0,20582.0,1.8001233]
[1674060073160,0.00355086,20593.0,20584.0,0.2874]
[1674060073411,0.00355086,20593.0,20588.0,0.1160839]
[1674060073652,0.00355086,20593.0,20589.0,0.773088]
[1674060073913,0.00355086,20593.0,20590.0,0.3]
[1674060074408,0.00364103,20592.0,20590.0,0.3]
[1674060074678,0.00364103,20592.0,20590.0,0.5874]
[1674060075401,0.00364103,20592.0,20590.0,0.3]
[1674060075645,0.00364103,20592.0,20591.0,0.2874]
[1674060075895,0.00364103,20592.0,20591.0,0.5874]
[1674060076147,0.00364103,20592.0,20591.0,1.073049]
[1674060076407,0.00364103,20592.0,20591.0,0.3]
[1674060077397,0.00364103,20592.0,20591.0,0.5874]
[1674060077678,0.00364103,20592.0,20591.0,1.25373961]
[1674060077907,0.00333343,20594.0,20591.0,2.82696957]
[1674060078153,0.00355086,20596.0,20594.0,0.7984]
[1674060078402,0.00355086,20596.0,20595.0,1.80908902]
[1674060078725,0.00379575,20601.0,20595.0,2.70906658]
[1674060078950,0.00379575,20601.0,20600.0,0.01985775]
[1674060079191,0.00110759,20603.0,20600.0,1.16093775]
[1674060079949,0.00110759,20603.0,20602.0,0.7984]
[1674060080193,0.00110759,20603.0,20602.0,1.0984]
[1674060080708,0.00110759,20603.0,20601.0,0.15]
[1674060081260,0.00110759,20603.0,20601.0,0.2911]
[1674060081489,0.00110759,20603.0,20601.0,0.61830169]
[1674060081711,0.00110759,20603.0,20602.0,0.7984]
[1674060081952,0.64539814,20609.0,20603.0,0.00246415]
[1674060082207,0.64539814,20609.0,20606.0,0.6518]
[1674060082554,0.49539814,20609.0,20608.0,0.9394]
[1674060082738,0.49539814,20609.0,20608.0,1.2394]
[1674060083244,0.49178567,20609.0,20608.0,1.2394]
[1674060083484,0.49178567,20609.0,20608.0,1.71660169]
[1674060083992,0.00400874,20616.0,20608.0,1.86660169]
[1674060084244,0.1471,20619.0,20615.0,0.2874]
[1674060084490,0.04879964,20620.0,20616.0,0.3]
[1674060084741,0.15,20618.0,20616.0,0.3]
[1674060084992,0.484964,20621.0,20616.0,0.3]
[1674060085256,0.00389836,20622.0,20616.0,0.3]
[1674060085747,0.00389836,20622.0,20615.0,0.3]
[1674060085748,0.19821933,20622.0,20615.0,0.3]
[1674060085993,0.67927897,20621.0,20615.0,0.3]
[1674060086252,1.16422097,20621.0,20614.0,0.04859557]
[1674060086493,0.19432097,20620.0,20614.0,0.04859557]
[1674060086742,0.9699,20621.0,20614.0,0.04859557]
[1674060086743,0.19432097,20619.0,20614.0,0.04859557]
[1674060087258,0.0055544,20618.0,20611.0,0.45080243]
[1674060087500,0.19432097,20617.0,20614.0,0.2874]
[1674060087747,0.0055544,20618.0,20616.0,0.2874]
[1674060087990,0.0055544,20618.0,20617.0,0.5874]
[1674060088763,0.0055544,20618.0,20617.0,1.0984]
[1674060089007,5.44e-05,20618.0,20617.0,1.57560169]
[1674060089264,0.00389836,20622.0,20617.0,1.88605727]
[1674060089516,0.00389836,20622.0,20621.0,0.7984]
[1674060089753,0.00389836,20622.0,20621.0,0.5874]
[1674060090004,0.00389836,20622.0,20621.0,0.3]
[1674060090506,0.00389836,20622.0,20621.0,0.28286]
[1674060090762,1.04541166,20628.0,20619.0,0.15]
[1674060091011,0.19432097,20627.0,20621.0,0.7984]
[1674060091266,0.19432097,20627.0,20619.0,0.15]
[1674060091541,0.19432097,20626.0,20622.0,0.15]
[1674060091783,1.04541166,20628.0,20622.0,0.15]
[1674060092051,0.15,20630.0,20623.0,0.2874]
[1674060092295,0.17307679,20631.0,20624.0,0.49432097]
[1674060092588,0.17307679,20631.0,20625.0,0.19432097]
[1674060092793,1.3961,20632.0,20626.0,0.19432097]
[1674060093048,1.3961,20632.0,20627.0,0.19432097]
[1674060093299,0.17307679,20631.0,20626.0,0.04904525]
[1674060093551,0.6,20628.0,20626.0,0.04904525]
[1674060093857,1.54137232,20627.0,20626.0,4.525e-05]
[1674060094064,2.55040406,20627.0,20622.0,0.15]
[1674060094321,2.55040406,20627.0,20621.0,0.15]
[1674060094322,0.741,20625.0,20621.0,0.15]
[1674060094565,0.1408,20623.0,20611.0,2.6674]
[1674060094816,0.141,20620.0,20611.0,2.6674]
[1674060095068,0.44812832,20619.0,20610.0,0.00019]
[1674060095315,0.11719032,20618.0,20610.0,0.00019]
[1674060095568,0.11719032,20617.0,20610.0,0.00019]
[1674060095814,0.47720169,20618.0,20612.0,0.15]
[1674060095815,0.11719032,20616.0,20612.0,0.15]
[1674060096089,0.11719032,20615.0,20612.0,0.15]
[1674060096630,0.04760648,20617.0,20613.0,0.134526]
[1674060096847,0.04760648,20617.0,20613.0,0.19432097]
[1674060097341,0.04760648,20617.0,20614.0,0.32883697]
[1674060097610,0.04760648,20617.0,20615.0,0.48172097]
[1674060097853,1.52312,20623.0,20616.0,0.134501]
[1674060098098,1.91347502,20623.0,20617.0,0.19432097]
[1674060098336,1.91347502,20623.0,20618.0,0.19432097]
[1674060098582,1.91347502,20623.0,20619.0,0.19432097]
[1674060098844,0.95428969,20622.0,20613.0,0.15]
[1674060099086,1.110164,20620.0,20613.0,0.34432097]
[1674060099341,0.90963701,20619.0,20608.0,0.15]
[1674060099610,0.485053,20617.0,20610.0,0.19432097]
[1674060099871,0.11719032,20616.0,20608.0,0.15]
[1674060100125,0.11719032,20615.0,20610.0,0.134546]
[1674060100369,1.3809,20617.0,20609.0,0.15]
[1674060100628,0.04791409,20616.0,20610.0,0.32887197]
[1674060100891,0.485099,20615.0,20607.0,2.731]
[1674060101140,0.53298909,20616.0,20607.0,0.19432097]
[1674060101387,0.04791409,20616.0,20608.0,0.32888397]
[1674060101624,0.04791409,20616.0,20609.0,0.19432097]
[1674060101867,0.04791409,20616.0,20610.0,0.19432097]
[1674060102116,0.04791409,20616.0,20611.0,0.19432097]
[1674060102366,0.04791409,20616.0,20612.0,0.19432097]
[1674060102619,0.04791409,20616.0,20613.0,0.134527]
[1674060102870,1.921375,20620.0,20613.0,0.3]
[1674060103110,1.921375,20620.0,20614.0,0.19432097]
[1674060103398,0.325943,20619.0,20615.0,0.19432097]
[1674060103637,0.325943,20619.0,20616.0,0.19432097]
[1674060103638,0.313425,20618.0,20616.0,0.19432097]
[1674060103881,1.2864,20620.0,20616.0,0.19432097]
[1674060104628,0.04914318,20621.0,20617.0,0.15]
[1674060104869,0.04914318,20621.0,20618.0,0.134483]
[1674060105116,0.04914318,20621.0,20618.0,0.49432097]
[1674060105617,0.04914318,20621.0,20619.0,0.19432097]
[1674060105858,0.04914318,20621.0,20620.0,0.134463]
[1674060106098,1.3525,20625.0,20620.0,0.434463]
[1674060106336,0.04990099,20625.0,20621.0,0.19432097]
[1674060106587,0.04990099,20625.0,20622.0,0.47876297]
[1674060106829,1.3525,20628.0,20623.0,0.3]
[1674060107069,0.15,20630.0,20624.0,0.32874597]
[1674060107330,0.15,20630.0,20625.0,0.49432097]
[1674060107566,0.0489574,20630.0,20626.0,0.32872397]
[1674060107822,0.0489574,20630.0,20627.0,0.19432097]
[1674060108074,0.0489574,20630.0,20628.0,0.134386]
[1674060108322,0.01903921,20630.0,20629.0,0.134378]
[1674060108566,0.00403138,20634.0,20629.0,0.434378]
[1674060108819,0.00403138,20634.0,20630.0,0.32868997]
[1674060109060,0.00403138,20634.0,20631.0,0.49432097]
[1674060109308,0.00403138,20634.0,20632.0,0.134349]
[1674060109566,0.00403138,20634.0,20632.0,0.49432097]
[1674060109808,0.00403138,20634.0,20633.0,0.134339]
[1674060110054,0.00403138,20634.0,20633.0,0.434339]
[1674060110337,0.00155021,20634.0,20633.0,0.62865997]
[1674060110591,0.00467299,20636.0,20633.0,0.434339]
[1674060110833,0.00467299,20636.0,20634.0,0.15]
[1674060111078,0.00467299,20636.0,20635.0,0.134321]
[1674060111327,0.00467299,20636.0,20631.0,0.04761714]
[1674060111850,0.00467299,20636.0,20632.0,0.13434]
[1674060112098,0.00467299,20636.0,20631.0,0.04761714]
[1674060112350,0.96646868,20636.0,20631.0,0.04761714]
[1674060112614,1.08216969,20635.0,20623.0,0.2828009]
[1674060112882,0.969396,20632.0,20624.0,0.19432097]
[1674060113142,1.44659769,20632.0,20622.0,0.19996454]
[1674060113404,1.44659769,20632.0,20622.0,0.24428551]
[1674060113405,0.141,20630.0,20622.0,0.24428551]
[1674060113647,0.969573,20628.0,20622.0,0.04996454]
[1674060114186,1.820864,20629.0,20623.0,0.19432097]
[1674060114426,1.35674,20633.0,20624.0,0.32874297]
[1674060114427,0.969336,20633.0,20624.0,0.32874297]
[1674060114683,1.890089,20632.0,20625.0,0.19432097]
[1674060114937,1.890089,20632.0,20626.0,0.19432097]
[1674060114938,1.4054,20632.0,20626.0,0.19432097]
[1674060115199,1.4054,20632.0,20627.0,0.18932097]
[1674060115445,0.484644,20634.0,20628.0,0.19432097]
[1674060115701,0.15,20635.0,20629.0,0.32869897]
[1674060115702,1.4054,20635.0,20629.0,0.32869897]
[1674060115956,1.10314569,20634.0,20626.0,0.04903124]
[1674060116207,0.1408,20631.0,20626.0,0.19432097]
[1674060116484,1.296879,20630.0,20629.0,0.04862737]
[1674060116702,1.273179,20630.0,20619.0,0.41422311]
[1674060116946,1.4054,20629.0,20626.0,0.04829744]
[1674060117209,1.88260169,20629.0,20620.0,0.19432097]
[1674060117451,0.15,20628.0,20620.0,0.19432097]
[1674060117697,0.96200969,20627.0,20619.0,0.04897232]
[1674060117944,0.484808,20627.0,20619.0,0.24329329]
[1674060118190,0.96200969,20627.0,20619.0,0.24329329]
[1674060118432,0.96200969,20627.0,20620.0,0.19432097]
[1674060118433,0.15,20626.0,20620.0,0.19432097]
[1674060118700,0.484844,20626.0,20620.0,0.19432097]
[1674060118948,2.031169,20629.0,20621.0,0.158147]
[1674060119192,2.031169,20629.0,20622.0,0.19432097]
[1674060119193,1.890169,20629.0,20622.0,0.19432097]
[1674060119436,1.4054,20629.0,20623.0,0.36095797]
[1674060119679,1.337,20631.0,20624.0,0.49432097]
[1674060119925,1.337,20631.0,20625.0,0.35243897]
[1674060120172,1.337,20631.0,20626.0,0.50282097]
[1674060120424,0.15,20630.0,20627.0,0.35241797]
[1674060120682,0.62720169,20630.0,20626.0,0.3]
[1674060120924,0.15,20630.0,20626.0,0.49432097]
[1674060121160,0.15,20630.0,20626.0,0.3]
[1674060121414,0.15,20630.0,20626.0,0.49432097]
[1674060121654,1.81927372,20631.0,20626.0,0.49432097]
[1674060121898,1.33455972,20631.0,20627.0,0.19432097]
[1674060122149,0.084651,20634.0,20628.0,0.20282097]
[1674060122410,0.484622,20635.0,20629.0,0.35240197]
[1674060122411,1.768522,20635.0,20629.0,0.35240197]
[1674060122664,1.768522,20635.0,20630.0,0.50282097]
[1674060122665,2.24572369,20635.0,20630.0,0.50282097]
[1674060122913,0.96974374,20634.0,20630.0,0.49432097]
[1674060123153,0.327327,20633.0,20631.0,0.0085]
[1674060123402,1.28556852,20632.0,20631.0,0.0085]
[1674060123647,0.315757,20632.0,20631.0,0.0085]
[1674060123902,2.38381469,20635.0,20631.0,0.0085]
[1674060124147,2.42048406,20634.0,20631.0,0.19432097]
[1674060124402,1.93269006,20633.0,20630.0,0.0085]
[1674060124647,0.1413,20631.0,20629.0,0.04823204]
[1674060124930,0.319189,20630.0,20629.0,0.04823204]
[1674060125172,0.319189,20630.0,20623.0,0.31144814]
[1674060125449,0.484683,20632.0,20624.0,0.15]
[1674060125707,0.484683,20632.0,20625.0,0.35243097]
[1674060125954,0.484683,20632.0,20626.0,0.19432097]
[1674060126181,0.484683,20632.0,20627.0,0.19432097]
[1674060126447,0.484664,20633.0,20627.0,0.19432097]
[1674060126743,0.484689,20632.0,20628.0,0.19432097]
[1674060126975,1.909824,20635.0,20629.0,0.19432097]
[1674060127242,0.9696922,20634.0,20630.0,0.20282097]
[1674060127505,0.9696922,20634.0,20631.0,0.3]
[1674060127826,2.24572569,20635.0,20631.0,0.49432097]
[1674060128047,0.00467299,20636.0,20632.0,0.20282097]
[1674060128312,0.00467299,20636.0,20633.0,0.35235897]
[1674060128581,0.00467299,20636.0,20634.0,0.158024]
[1674060128856,0.00467299,20636.0,20634.0,0.0085]
[1674060129122,0.00467299,20636.0,20633.0,0.15]
[1674060129404,0.00467299,20636.0,20633.0,0.19432097]
[1674060129664,0.00467299,20636.0,20634.0,0.0085]
[1674060129938,0.00467299,20636.0,20635.0,0.35233597]
[1674060130196,0.00467299,20636.0,20635.0,1.62156197]
[1674060130483,0.00636926,20643.0,20639.0,0.00467299]
[1674060130780,1.4028,20647.0,20640.0,0.19432097]
[1674060131046,0.00619005,20644.0,20641.0,0.35227197]
[1674060131306,0.15,20649.0,20642.0,0.92302097]
[1674060131307,0.14619005,20649.0,20642.0,0.92302097]
[1674060131566,0.14619005,20649.0,20643.0,0.63965197]
[1674060131973,0.10871692,20649.0,20644.0,0.97871397]
[1674060131978,0.0001,20650.0,20644.0,0.97871397]
[1674060132206,0.52175681,20649.0,20645.0,0.0085]
[1674060132434,0.1413,20647.0,20643.0,0.04792617]
[1674060132651,1.289941,20646.0,20643.0,0.24224714]
[1674060132875,0.47720169,20646.0,20643.0,0.04792617]
[1674060133161,0.48432,20648.0,20643.0,0.04792617]
[1674060133347,0.1501,20650.0,20644.0,0.19432097]
[1674060133571,0.1501,20650.0,20645.0,0.35223097]
[1674060133793,0.1501,20650.0,20646.0,0.19432097]
[1674060134012,0.0001,20650.0,20647.0,0.19432097]
[1674060134477,0.0001,20650.0,20648.0,0.16638]
[1674060134695,0.0001,20650.0,20648.0,0.3085]
[1674060134910,0.0001,20650.0,20648.0,0.0085]
[1674060135147,0.0001,20650.0,20647.0,0.0085]
[1674060135383,0.47730169,20650.0,20647.0,0.0085]
[1674060135589,0.1408,20648.0,20645.0,0.19754155]
[1674060135823,0.1408,20648.0,20642.0,0.15]
[1674060135824,0.61830169,20646.0,20642.0,0.15]
[1674060136039,1.29991569,20645.0,20643.0,0.04759586]
[1674060136270,0.331698,20644.0,20640.0,0.484484]
[1674060136490,0.15,20648.0,20640.0,0.484484]
[1674060136720,0.04750806,20645.0,20641.0,0.35226997]
[1674060136947,0.04750806,20645.0,20643.0,1.256246]
[1674060137213,0.0001,20650.0,20644.0,0.157922]
[1674060137420,0.0001,20650.0,20645.0,1.93481297]
[1674060137642,0.04822081,20649.0,20647.0,0.2874]
[1674060137865,0.0001,20650.0,20648.0,1.268616]
[1674060138083,0.0001,20650.0,20649.0,0.166369]
[1674060138474,0.0475896,20656.0,20649.0,0.36068997]
[1674060138731,0.0475896,20656.0,20650.0,0.49432097]
[1674060138987,0.0475896,20656.0,20651.0,1.81331997]
[1674060139245,0.00619005,20659.0,20652.0,0.65215197]
[1674060139518,0.00619005,20659.0,20654.0,0.484165]
[1674060139519,0.47720169,20658.0,20654.0,0.484165]
[1674060139771,0.00619005,20659.0,20655.0,0.65212297]
[1674060140029,0.00619005,20659.0,20656.0,0.19432097]
[1674060140297,0.00619005,20659.0,20657.0,0.157782]
[1674060140570,1.38764316,20661.0,20657.0,0.49432097]
[1674060140866,1.38764316,20661.0,20658.0,0.151592]
[1674060141149,1.2787144,20661.0,20658.0,0.49432097]
[1674060141412,1.2787144,20661.0,20653.0,0.484172]
[1674060141413,1.75591609,20661.0,20655.0,0.3]
[1674060141683,0.47720169,20659.0,20651.0,0.15]
[1674060141964,1.109212,20657.0,20644.0,6.03072263]
[1674060142244,0.47720169,20656.0,20644.0,2.37510997]
[1674060142535,0.484159,20655.0,20645.0,0.34603297]
[1674060142800,1.00836774,20656.0,20647.0,0.968638]
[1674060143056,0.04702905,20656.0,20649.0,0.15]
[1674060143318,0.04988741,20657.0,20651.0,0.96847]
[1674060143605,0.04988741,20657.0,20652.0,0.63337397]
[1674060143867,0.04988741,20657.0,20653.0,1.16267897]
[1674060144132,0.04988741,20657.0,20654.0,0.79595297]
[1674060144387,1.22685715,20661.0,20654.0,0.484148]
[1674060144658,1.27439413,20661.0,20655.0,0.19432097]
[1674060144955,0.15,20660.0,20656.0,0.19432097]
[1674060145205,1.27439413,20661.0,20656.0,0.484117]
[1674060145469,1.27439413,20661.0,20657.0,0.19432097]
[1674060145722,0.01624626,20661.0,20658.0,0.19432097]
[1674060146007,0.01624626,20661.0,20659.0,0.151582]
[1674060146293,0.2835,20664.0,20659.0,0.3]
[1674060146575,0.47720169,20663.0,20660.0,0.19432097]
[1674060146859,0.320416,20662.0,20660.0,0.49432097]
[1674060147120,0.15,20664.0,20660.0,0.3]
[1674060147379,1.33642392,20665.0,20660.0,0.97834497]
[1674060147949,0.47720169,20664.0,20658.0,0.04862636]
[1674060148219,2.54213569,20663.0,20658.0,0.04862636]
[1674060148490,0.81682369,20662.0,20658.0,0.19432097]
[1674060148771,0.337882,20661.0,20656.0,0.484101]
[1674060149071,0.770079,20663.0,20656.0,0.67842197]
[1674060149375,0.19702905,20664.0,20657.0,0.39954815]
[1674060149376,0.633955,20664.0,20657.0,0.39954815]
[1674060149634,0.633955,20664.0,20658.0,1.46244397]
[1674060149905,0.633955,20664.0,20658.0,0.19432097]
[1674060149906,0.52423074,20663.0,20658.0,0.19432097]
[1674060150165,0.95888869,20662.0,20658.0,0.48407]
[1674060150431,0.79825069,20661.0,20657.0,0.53272218]
[1674060150695,0.80554669,20660.0,20657.0,0.04862618]
[1674060150986,0.47720169,20660.0,20657.0,0.04862618]
[1674060151245,0.15,20662.0,20657.0,0.04862618]
[1674060151523,0.47720169,20660.0,20657.0,0.04862618]
[1674060152036,0.1413,20658.0,20657.0,0.04862618]
[1674060152038,0.2913,20658.0,20651.0,0.484231]
[1674060152328,0.1413,20655.0,20654.0,0.04852515]
[1674060152601,1.90808169,20655.0,20647.0,0.484325]
[1674060152865,0.80592869,20654.0,20648.0,0.484304]
[1674060153117,0.15,20653.0,20648.0,0.484304]
[1674060153406,0.47720169,20655.0,20648.0,0.484304]
[1674060153672,0.625118,20657.0,20648.0,0.67862497]
[1674060153673,0.47720169,20654.0,20648.0,0.67862497]
[1674060153930,0.47720169,20653.0,20648.0,0.67862497]
[1674060154224,0.2744391,20656.0,20647.0,0.53279202]
[1674060154225,0.47720169,20652.0,20647.0,0.53279202]
[1674060154707,0.47720169,20651.0,20647.0,0.04846702]
[1674060154720,0.1413,20653.0,20647.0,0.04846702]
[1674060154979,0.34333231,20652.0,20647.0,0.24278799]
[1674060155250,0.625502,20653.0,20647.0,0.04846702]
[1674060155251,0.332451,20651.0,20647.0,0.04846702]
[1674060155540,0.468155,20650.0,20643.0,0.484404]
[1674060155812,0.342489,20649.0,20647.0,0.04959634]
[1674060156079,0.345164,20648.0,20643.0,0.19432097]
[1674060156334,0.44979874,20650.0,20643.0,0.53259318]
[1674060156595,0.15,20648.0,20643.0,0.24250415]
[1674060156874,0.15,20648.0,20643.0,0.04818318]
[1674060156875,0.332586,20647.0,20643.0,0.04818318]
[1674060157147,0.303503,20646.0,20643.0,0.04818318]
[1674060157423,0.15,20646.0,20642.0,0.01448719]
[1674060158220,0.1411,20644.0,20642.0,0.01448719]
[1674060158598,0.323736,20643.0,20642.0,0.00948719]
[1674060158601,0.1413,20643.0,20642.0,0.00948719]
[1674060158843,0.473047,20643.0,20642.0,0.00948719]
[1674060159088,0.473047,20643.0,20639.0,0.00467299]
[1674060159346,0.72658,20645.0,20640.0,0.00102502]
[1674060159347,0.314031,20642.0,20640.0,0.00102502]
[1674060159608,0.1402,20646.0,20640.0,0.00102502]
[1674060159904,0.1402,20646.0,20641.0,0.19432097]
[1674060160170,0.1399,20644.0,20639.0,0.00467299]
[1674060160466,0.1408,20642.0,20641.0,0.04805709]
[1674060160716,0.47967,20642.0,20639.0,0.00467299]
[1674060160983,0.1401,20640.0,20639.0,0.00467299]
[1674060161250,0.477798,20640.0,20639.0,7.299e-05]
[1674060161968,0.337698,20640.0,20639.0,7.299e-05]
[1674060162531,1.686572,20646.0,20639.0,7.299e-05]
[1674060162767,1.686572,20646.0,20640.0,0.19432097]
[1674060162768,0.15,20641.0,20640.0,0.19432097]
[1674060163009,0.15,20641.0,20639.0,7.299e-05]
[1674060163771,0.26968,20645.0,20637.0,0.784552]
[1674060163772,0.625393,20645.0,20637.0,0.784552]
[1674060164015,0.141,20645.0,20638.0,0.67152266]
[1674060164254,0.141,20645.0,20639.0,0.3]
[1674060164255,0.15,20643.0,20639.0,0.3]
[1674060164507,0.2901,20643.0,20640.0,0.0085]
[1674060164764,0.2901,20643.0,20636.0,0.03479128]
[1674060164765,0.141,20641.0,20636.0,0.03479128]
[1674060165046,0.332322,20640.0,20636.0,0.08449872]
[1674060165299,0.141,20641.0,20636.0,0.08449872]
[1674060165558,0.2901,20643.0,20636.0,0.76339569]
[1674060165803,0.2901,20643.0,20637.0,0.19432097]
[1674060166067,0.15,20641.0,20638.0,0.19432097]
[1674060166308,0.15,20641.0,20639.0,0.0085]
[1674060166563,0.15,20641.0,20637.0,0.0085]
[1674060166805,0.291,20641.0,20636.0,0.08449872]
[1674060167303,0.291,20641.0,20636.0,0.27881969]
[1674060167811,0.291,20641.0,20636.0,0.76339969]
[1674060168055,0.15,20639.0,20636.0,0.76339969]
[1674060168296,0.15,20639.0,20636.0,0.56907872]
[1674060168543,0.15,20639.0,20637.0,0.0085]
[1674060168782,0.15,20639.0,20638.0,0.317967]
[1674060169076,0.15,20639.0,20638.0,0.0085]
[1674060169318,0.291,20641.0,20638.0,0.0085]
[1674060169559,0.322764,20640.0,20636.0,0.08449872]
[1674060169890,0.376032,20641.0,20636.0,0.08449872]
[1674060170076,0.376032,20641.0,20636.0,0.27881969]
[1674060170290,0.376032,20641.0,20636.0,0.08449872]
[1674060170291,0.15,20639.0,20636.0,0.08449872]
[1674060170541,0.1413,20637.0,20636.0,0.08449872]
[1674060170798,0.469293,20637.0,20636.0,0.03479128]
[1674060171581,0.5312223,20637.0,20636.0,0.03479128]
[1674060171825,0.619293,20637.0,20636.0,0.03479128]
[1674060172352,0.477993,20637.0,20636.0,0.03489321]
[1674060172620,0.15,20639.0,20637.0,0.13273232]
[1674060172860,0.15,20639.0,20638.0,0.323706]
[1674060173375,0.15,20641.0,20638.0,1.00372866]
[1674060173636,0.15,20642.0,20639.0,1.12285561]
[1674060173879,0.15,20642.0,20640.0,0.79949369]
[1674060174110,0.15,20642.0,20641.0,0.629534]
[1674060174596,0.15,20644.0,20641.0,0.629534]
[1674060174837,0.15,20644.0,20641.0,0.50282097]
[1674060175082,0.15,20645.0,20641.0,0.3085]
[1674060175345,0.15,20645.0,20641.0,0.50282097]
[1674060175599,0.15,20645.0,20641.0,0.0085]
[1674060175600,0.20001688,20645.0,20641.0,0.0085]
[1674060175846,0.20001688,20645.0,20639.0,0.04872545]
[1674060175847,1.30220775,20644.0,20639.0,0.04872545]
[1674060176092,0.320726,20643.0,20639.0,0.04872545]
[1674060176333,0.68439888,20645.0,20639.0,0.04872545]
[1674060176334,0.1399,20645.0,20639.0,0.04872545]
[1674060176590,0.1399,20645.0,20640.0,0.19432097]
[1674060176825,0.28174998,20645.0,20640.0,0.19432097]
[1674060177064,0.76613398,20645.0,20640.0,0.19432097]
[1674060177314,1.28561562,20644.0,20641.0,0.0085]
[1674060177643,1.92224666,20643.0,20639.0,0.04872545]
[1674060177874,0.1402,20640.0,20639.0,0.04872545]
[1674060178122,0.1402,20640.0,20636.0,0.03479128]
[1674060178123,2.40360034,20640.0,20636.0,0.03479128]
[1674060178370,2.40360034,20640.0,20630.0,0.49921519]
[1674060178371,0.141,20637.0,20630.0,0.01448719]
[1674060178648,1.792446,20636.0,20635.0,0.04976051]
[1674060178871,2.064996,20636.0,20630.0,0.01448719]
[1674060179109,0.141,20633.0,20630.0,0.01448719]
[1674060179358,0.333717,20633.0,20630.0,0.01448719]
[1674060179609,0.1399,20635.0,20632.0,0.01472018]
[1674060179859,0.33897883,20637.0,20632.0,0.01448719]
[1674060180104,0.333415,20636.0,20632.0,0.20880816]
[1674060180366,0.1413,20634.0,20632.0,0.01448719]
[1674060180617,0.321579,20633.0,20632.0,0.01448719]
[1674060181141,0.1413,20634.0,20632.0,0.01448719]
[1674060181401,0.1401,20636.0,20632.0,0.01708554]
[1674060181651,0.1401,20636.0,20632.0,0.21140651]
[1674060181652,0.2901,20636.0,20632.0,0.21140651]
[1674060181902,0.1401,20636.0,20632.0,0.21140651]
[1674060182148,0.04767883,20637.0,20632.0,0.21140651]
[1674060182645,0.04767883,20637.0,20634.0,0.15]
[1674060182906,0.18867883,20637.0,20635.0,0.0085]
[1674060183149,0.64444088,20637.0,20635.0,0.0085]
[1674060183399,0.332008,20636.0,20632.0,0.20880816]
[1674060183705,0.1401,20634.0,20632.0,0.01448719]
[1674060183952,0.7821142,20634.0,20632.0,0.01448719]
[1674060184177,1.52338846,20633.0,20632.0,0.01448719]
[1674060184433,2.49270846,20633.0,20632.0,0.01448719]
[1674060184681,2.68973751,20633.0,20632.0,5.29e-06]
[1674060185014,3.49054914,20633.0,20630.0,7.19e-06]
[1674060185218,0.1413,20630.0,20627.0,0.01556214]
[1674060185636,0.1402,20628.0,20627.0,0.01556214]
[1674060185908,0.625197,20628.0,20627.0,0.01556214]
[1674060186170,0.67222605,20628.0,20627.0,0.01556214]
[1674060186434,0.67222605,20628.0,20626.0,0.01556214]
[1674060186435,0.06272,20627.0,20626.0,0.01556214]
[1674060186704,0.01556,20626.0,20618.0,0.01638123]
[1674060186961,0.1402,20620.0,20618.0,0.01638123]
[1674060187223,0.342629,20619.0,20618.0,0.01619123]
[1674060187512,0.827618,20619.0,20612.0,0.01589083]
[1674060187810,0.1413,20615.0,20612.0,0.01589083]
[1674060188067,0.07605829,20615.0,20612.0,0.01589083]
[1674060188589,0.1413,20613.0,20612.0,0.01589083]
[1674060188859,0.472958,20613.0,20612.0,0.01589083]
[1674060189408,0.18029772,20617.0,20612.0,0.53577252]
[1674060189409,0.18948772,20617.0,20612.0,0.53577252]
[1674060189670,0.04958772,20617.0,20613.0,0.51422697]
[1674060189937,0.04958772,20617.0,20614.0,0.52493397]
[1674060190420,0.4,20620.0,20613.0,0.19432097]
[1674060190421,0.15,20620.0,20613.0,0.19432097]
[1674060190426,0.00495877,20617.0,20613.0,0.19432097]
[1674060190688,0.1399,20616.0,20612.0,0.01589083]
[1674060190965,0.12315563,20614.0,20612.0,0.01589083]
[1674060191235,0.122301,20613.0,20612.0,0.01589083]
[1674060191493,0.325898,20613.0,20612.0,0.01589083]
[1674060192054,0.325898,20613.0,20612.0,0.05857083]
[1674060192313,0.63511,20614.0,20612.0,0.01589083]
[1674060192579,0.306044,20613.0,20612.0,0.01589083]
[1674060193416,0.306044,20613.0,20612.0,0.05912646]
[1674060193695,0.53441065,20617.0,20612.0,0.05912646]
[1674060193961,0.53441065,20617.0,20613.0,0.19432097]
[1674060194232,0.04937165,20617.0,20614.0,0.99792666]
[1674060194527,0.04937165,20617.0,20615.0,0.62199055]
[1674060194819,0.484976,20620.0,20615.0,0.00055555]
[1674060195087,0.7293582,20620.0,20616.0,0.19432097]
[1674060195349,0.1413,20618.0,20616.0,0.19432097]
[1674060195635,0.1413,20618.0,20612.0,0.01589083]
[1674060195636,0.104306,20617.0,20612.0,0.01589083]
[1674060195898,0.806078,20616.0,20612.0,0.01589083]
[1674060196165,0.116561,20615.0,20612.0,0.01589083]
[1674060196429,0.15,20616.0,20613.0,0.00196051]
[1674060196687,0.04791923,20617.0,20613.0,0.00196051]
[1674060197003,0.53295923,20617.0,20612.0,0.01589083]
[1674060197270,0.1408,20616.0,20612.0,0.01589083]
[1674060197568,1.931893,20615.0,20612.0,0.01589083]
[1674060197833,0.110939,20614.0,20612.0,0.01785145]
[1674060198088,0.110939,20614.0,20612.0,0.01589083]
[1674060198089,0.326629,20613.0,20612.0,0.01589083]
[1674060198360,0.66271523,20617.0,20612.0,0.05857083]
[1674060198361,0.04791923,20617.0,20612.0,0.05857083]
[1674060198613,0.485061,20616.0,20613.0,0.51303697]
[1674060198870,0.485061,20616.0,20612.0,0.01589083]
[1674060199127,0.485069,20616.0,20612.0,0.01589083]
[1674060199686,0.15,20615.0,20612.0,0.01589083]
[1674060199955,0.635089,20615.0,20612.0,0.01589083]
[1674060200207,0.635089,20615.0,20613.0,0.00196051]
[1674060200474,0.485069,20616.0,20612.0,0.01589083]
[1674060200732,0.04791923,20617.0,20612.0,1.17256449]
[1674060201225,0.53296723,20617.0,20613.0,0.3]
[1674060201228,1.16378665,20617.0,20612.0,0.01589083]
[1674060201492,0.1413,20615.0,20612.0,0.2102118]
[1674060201758,0.336416,20614.0,20612.0,0.01589083]
[1674060202025,0.626393,20615.0,20612.0,0.01589083]